Workbook

Sheet Sheet1
A1: 附件：
A2: 提前下达2022年公共文化服务体系建设（农村文化建设--农村电影放映、文化信息共享工程、农村文化活动、农村体育活动）补助资金安排表
A3: 县市区/单位 | B3: 合计金额（万元） | D3: 行政村数（个） | E3: 其中：农村文化建设(农村电影放映） | G3: 其中：农村文化建设(文化信息共享工程、农村文化活动、农村体育活动) | I3: 摘要/备注
B4: 中央 | C4: 省级 | E4: 中央 | F4: 省级 | G4: 中央 | H4: 省级
A5: 合计 | B5: =E5+G5 -> 12791.14 | C5: =F5+H5 -> 7576.32 | D5: 23792 | E5: =E6+E16+E26+E32+E45+E58+E68+E78+E83+E90+E102+E114+E120+E134 -> 2967.43 | F5: =F6+F16+F26+F32+F45+F58+F68+F78+F83+F90+F102+F114+F120+F134 -> 1142.02 | G5: =G6+G16+G26+G32+G45+G58+G68+G78+G83+G90+G102+G114+G120+G134 -> 9823.71 | H5: =H6+H16+H26+H32+H45+H58+H68+H78+H83+H90+H102+H114+H120+H134 -> 6434.30
A6: 长沙市小计 | B6: =E6+G6 -> 474.97 | C6: =F6+H6 -> 279.25 | D6: 877 | E6: =SUM(E7:E15) -> 105.24 | F6: =SUM(F7:F15) -> 42.10 | G6: =SUM(G7:G15) -> 369.73 | H6: =SUM(H7:H15) -> 237.15
A7: 长沙市本级及所辖区 | B7: 3.25 | C7: 1.91 | D7: 6 | E7: 0.72 | F7: 0.29 | G7: 2.53 | H7: 1.62 | I7: 长沙县
B8: 6.49 | C8: 3.83 | D8: 12 | E8: 1.44 | F8: 0.58 | G8: 5.05 | H8: 3.25 | I8: 望城区
B9: 28.15 | C9: 16.57 | D9: 52 | E9: 6.24 | F9: 2.50 | G9: 21.91 | H9: 14.07 | I9: 雨花区
B10: 4.88 | C10: 2.86 | D10: 9 | E10: 1.08 | F10: 0.43 | G10: 3.80 | H10: 2.43 | I10: 芙蓉区
B11: 15.17 | C11: 8.91 | D11: 28 | E11: 3.36 | F11: 1.34 | G11: 11.81 | H11: 7.57 | I11: 天心区
B12: 63.37 | C12: 37.25 | D12: 117 | E12: 14.04 | F12: 5.62 | G12: 49.33 | H12: 31.63 | I12: 岳麓区
B13: 61.74 | C13: 36.30 | D13: 114 | E13: 13.68 | F13: 5.47 | G13: 48.06 | H13: 30.83 | I13: 开福区
A14: 浏阳市 | B14: 161.94 | C14: 95.20 | D14: 299 | E14: 35.88 | F14: 14.35 | G14: 126.06 | H14: 80.85
A15: 宁乡市 | B15: 129.98 | C15: 76.42 | D15: 240 | E15: 28.80 | F15: 11.52 | G15: 101.18 | H15: 64.90
A16: 株洲市小计 | B16: 549.15 | C16: 322.89 | D16: 1014 | E16: =SUM(E17:E25) -> 121.68 | F16: =SUM(F17:F25) -> 48.66 | G16: =SUM(G17:G25) -> 427.47 | H16: =SUM(H17:H25) -> 274.23
A17: 株洲市本级及所辖区 | B17: 13.00 | C17: 7.64 | D17: 24 | E17: 2.88 | F17: 1.15 | G17: 10.12 | H17: 6.49 | I17: 天元区
B18: 17.32 | C18: 10.20 | D18: 32 | E18: 3.84 | F18: 1.54 | G18: 13.48 | H18: 8.66 | I18: 芦淞区
B19: 4.88 | C19: 2.86 | D19: 9 | E19: 1.08 | F19: 0.43 | G19: 3.80 | H19: 2.43 | I19: 荷塘区
B20: 15.17 | C20: 8.91 | D20: 28 | E20: 3.36 | F20: 1.34 | G20: 11.81 | H20: 7.57 | I20: 石峰区
A21: 渌口区 | B21: 69.86 | C21: 41.08 | D21: 129 | E21: 15.48 | F21: 6.19 | G21: 54.38 | H21: 34.89
A22: 醴陵市 | B22: 115.35 | C22: 67.83 | D22: 213 | E22: 25.56 | F22: 10.22 | G22: 89.79 | H22: 57.61
A23: 攸县 | B23: 132.14 | C23: 77.70 | D23: 244 | E23: 29.28 | F23: 11.71 | G23: 102.86 | H23: 65.99
A24: 茶陵县 | B24: 116.44 | C24: 68.46 | D24: 215 | E24: 25.80 | F24: 10.32 | G24: 90.64 | H24: 58.14
A25: 炎陵县 | B25: 64.99 | C25: 38.21 | D25: 120 | E25: 14.40 | F25: 5.76 | G25: 50.59 | H25: 32.45
A26: 湘潭市小计 | B26: 413.21 | C26: 242.97 | D26: 763 | E26: =SUM(E27:E31) -> 91.56 | F26: =SUM(F27:F31) -> 36.62 | G26: =SUM(G27:G31) -> 321.65 | H26: =SUM(H27:H31) -> 206.35
A27: 湘潭市本级及所辖区 | B27: 42.25 | C27: 24.83 | D27: 78 | E27: 9.36 | F27: 3.74 | G27: 32.89 | H27: 21.09 | I27: 雨湖区
B28: 18.41 | C28: 10.83 | D28: 34 | E28: 4.08 | F28: 1.63 | G28: 14.33 | H28: 9.20 | I28: 岳塘区
A29: 湘潭县 | B29: 173.83 | C29: 102.23 | D29: 321 | E29: 38.52 | F29: 15.41 | G29: 135.31 | H29: 86.82
A30: 湘乡市 | B30: 160.84 | C30: 94.58 | D30: 297 | E30: 35.64 | F30: 14.26 | G30: 125.20 | H30: 80.32
A31: 韶山市 | B31: 17.88 | C31: 10.50 | D31: 33 | E31: 3.96 | F31: 1.58 | G31: 13.92 | H31: 8.92
A32: 衡阳市小计 | B32: 1229.35 | C32: 722.85 | D32: 2270 | E32: =SUM(E33:E44) -> 272.40 | F32: =SUM(F33:F44) -> 108.95 | G32: =SUM(G33:G44) -> 956.95 | H32: =SUM(H33:H44) -> 613.90
A33: 衡阳市本级及所辖区 | B33: 18.95 | C33: 11.15 | D33: 35 | E33: 4.20 | F33: 1.68 | G33: 14.75 | H33: 9.47 | I33: 南岳区
B34: 9.75 | C34: 5.73 | D34: 18 | E34: 2.16 | F34: 0.86 | G34: 7.59 | H34: 4.87 | I34: 珠晖区
B35: 8.12 | C35: 4.78 | D35: 15 | E35: 1.80 | F35: 0.72 | G35: 6.32 | H35: 4.06 | I35: 雁峰区
B36: 14.62 | C36: 8.60 | D36: 27 | E36: 3.24 | F36: 1.30 | G36: 11.38 | H36: 7.30 | I36: 石鼓区
B37: 9.75 | C37: 5.73 | D37: 18 | E37: 2.16 | F37: 0.86 | G37: 7.59 | H37: 4.87 | I37: 蒸湘区（含高新区）
A38: 衡南县 | B38: =E38+G38 -> 203.09 | C38: =F38+H38 -> 119.41 | D38: 375 | E38: 45.00 | F38: 18.00 | G38: 158.09 | H38: 101.41
A39: 衡阳县 | B39: 239.92 | C39: 141.06 | D39: 443 | E39: 53.16 | F39: 21.26 | G39: 186.76 | H39: 119.80
A40: 衡山县 | B40: 69.32 | C40: 40.76 | D40: 128 | E40: 15.36 | F40: 6.14 | G40: 53.96 | H40: 34.62
A41: 衡东县 | B41: 125.10 | C41: 73.56 | D41: 231 | E41: 27.72 | F41: 11.09 | G41: 97.38 | H41: 62.47
A42: 常宁市 | B42: 197.13 | C42: 115.91 | D42: 364 | E42: 43.68 | F42: 17.47 | G42: 153.45 | H42: 98.44
A43: 祁东县 | B43: 160.30 | C43: 94.26 | D43: 296 | E43: 35.52 | F43: 14.21 | G43: 124.78 | H43: 80.05
A44: 耒阳市 | B44: 173.30 | C44: 101.90 | D44: 320 | E44: 38.40 | F44: 15.36 | G44: 134.90 | H44: 86.54
A45: 邵阳市小计 | B45: 1718.38 | C45: 1010.40 | D45: 3173 | E45: =SUM(E46:E57) -> 380.76 | F45: =SUM(F46:F57) -> 152.30 | G45: =SUM(G46:G57) -> 1337.62 | H45: =SUM(H46:H57) -> 858.10
A46: 邵阳市本级及所辖区 | B46: 18.42 | C46: 10.82 | D46: 34 | E46: 4.08 | F46: 1.63 | G46: 14.34 | H46: 9.19 | I46: 双清区（含经开区）
B47: 20.58 | C47: 12.10 | D47: 38 | E47: 4.56 | F47: 1.82 | G47: 16.02 | H47: 10.28 | I47: 大祥区
B48: 7.59 | C48: 4.45 | D48: 14 | E48: 1.68 | F48: 0.67 | G48: 5.91 | H48: 3.78 | I48: 北塔区
A49: 邵东市 | B49: 282.15 | C49: 165.91 | D49: 521 | E49: 62.52 | F49: 25.01 | G49: 219.63 | H49: 140.90
A50: 新邵县 | B50: 198.21 | C50: 116.55 | D50: 366 | E50: 43.92 | F50: 17.57 | G50: 154.29 | H50: 98.98
A51: 隆回县 | B51: 277.82 | C51: 163.36 | D51: 513 | E51: 61.56 | F51: 24.62 | G51: 216.26 | H51: 138.74
A52: 武冈市 | B52: 155.42 | C52: 91.40 | D52: 287 | E52: 34.44 | F52: 13.78 | G52: 120.98 | H52: 77.62
A53: 洞口县 | B53: 180.88 | C53: 106.36 | D53: 334 | E53: 40.08 | F53: 16.03 | G53: 140.80 | H53: 90.33
A54: 新宁县 | B54: 161.93 | C54: 95.21 | D54: 299 | E54: 35.88 | F54: 14.35 | G54: 126.05 | H54: 80.86
A55: 邵阳县 | B55: 212.29 | C55: 124.83 | D55: 392 | E55: 47.04 | F55: 18.82 | G55: 165.25 | H55: 106.01
A56: 城步县 | B56: 86.65 | C56: 50.95 | D56: 160 | E56: 19.20 | F56: 7.68 | G56: 67.45 | H56: 43.27
A57: 绥宁县 | B57: 116.44 | C57: 68.46 | D57: 215 | E57: 25.80 | F57: 10.32 | G57: 90.64 | H57: 58.14
A58: 岳阳市小计 | B58: 743.03 | C58: 436.89 | D58: 1372 | E58: =SUM(E59:E67) -> 164.64 | F58: =SUM(F59:F67) -> 65.85 | G58: =SUM(G59:G67) -> 578.39 | H58: =SUM(H59:H67) -> 371.04
A59: 岳阳市本级及所辖区 | B59: 19.50 | C59: 11.46 | D59: 36 | E59: 4.32 | F59: 1.73 | G59: 15.18 | H59: 9.73 | I59: 岳阳楼区
B60: 18.95 | C60: 11.15 | D60: 35 | E60: 4.20 | F60: 1.68 | G60: 14.75 | H60: 9.47 | I60: 云溪区
B61: 28.71 | C61: 16.87 | D61: 53 | E61: 6.36 | F61: 2.54 | G61: 22.35 | H61: 14.33 | I61: 君山区
A62: 汨罗市 | B62: 90.99 | C62: 53.49 | D62: 168 | E62: 20.16 | F62: 8.06 | G62: 70.83 | H62: 45.43 | I62: 含屈原管理区
A63: 平江县 | B63: 269.15 | C63: 158.27 | D63: 497 | E63: 59.64 | F63: 23.86 | G63: 209.51 | H63: 134.41
A64: 湘阴县 | B64: 82.86 | C64: 48.72 | D64: 153 | E64: 18.36 | F64: 7.34 | G64: 64.50 | H64: 41.38
A65: 临湘市 | B65: 61.74 | C65: 36.30 | D65: 114 | E65: 13.68 | F65: 5.47 | G65: 48.06 | H65: 30.83
A66: 华容县 | B66: 83.94 | C66: 49.36 | D66: 155 | E66: 18.60 | F66: 7.44 | G66: 65.34 | H66: 41.92
A67: 岳阳县 | B67: 87.19 | C67: 51.27 | D67: 161 | E67: 19.32 | F67: 7.73 | G67: 67.87 | H67: 43.54
A68: 常德市小计 | B68: 819.38 | C68: 481.80 | D68: 1513 | E68: =SUM(E69:E77) -> 181.56 | F68: =SUM(F69:F77) -> 72.62 | G68: =SUM(G69:G77) -> 637.82 | H68: =SUM(H69:H77) -> 409.18
A69: 常德市本级及所辖区 | B69: 16.25 | C69: 9.55 | D69: 30 | E69: 3.60 | F69: 1.44 | G69: 12.65 | H69: 8.11 | I69: 武陵区
B70: =E70+G70 -> 122.39 | C70: =F70+H70 -> 71.97 | D70: 226 | E70: 27.12 | F70: 10.85 | G70: 95.27 | H70: 61.12 | I70: 鼎城区 （含西洞庭管理区）
A71: 津市市 | B71: 21.12 | C71: 12.42 | D71: 39 | E71: 4.68 | F71: 1.87 | G71: 16.44 | H71: 10.55
A72: 安乡县 | B72: 62.28 | C72: 36.62 | D72: 115 | E72: 13.80 | F72: 5.52 | G72: 48.48 | H72: 31.10
A73: 汉寿县 | B73: 115.35 | C73: 67.83 | D73: 213 | E73: 25.56 | F73: 10.22 | G73: 89.79 | H73: 57.61 | I73: 含西湖管理区
A74: 澧县 | B74: 107.23 | C74: 63.05 | D74: 198 | E74: 23.76 | F74: 9.50 | G74: 83.47 | H74: 53.55
A75: 临澧县 | B75: 50.91 | C75: 29.93 | D75: 94 | E75: 11.28 | F75: 4.51 | G75: 39.63 | H75: 25.42
A76: 桃源县 | B76: 190.09 | C76: 111.77 | D76: 351 | E76: 42.12 | F76: 16.85 | G76: 147.97 | H76: 94.92
A77: 石门县 | B77: 133.76 | C77: 78.66 | D77: 247 | E77: 29.64 | F77: 11.86 | G77: 104.12 | H77: 66.80
A78: 张家界市小计 | B78: 465.74 | C78: 273.86 | D78: 860 | E78: =SUM(E79:E82) -> 103.20 | F78: =SUM(F79:F82) -> 41.28 | G78: =SUM(G79:G82) -> 362.54 | H78: =SUM(H79:H82) -> 232.58
A79: 张家界市本级及所辖区 | B79: 99.65 | C79: 58.59 | D79: 184 | E79: 22.08 | F79: 8.83 | G79: 77.57 | H79: 49.76 | I79: 永定区
B80: 8.12 | C80: 4.78 | D80: 15 | E80: 1.80 | F80: 0.72 | G80: 6.32 | H80: 4.06 | I80: 武陵源区
A81: 慈利县 | B81: 208.50 | C81: 122.60 | D81: 385 | E81: 46.20 | F81: 18.48 | G81: 162.30 | H81: 104.12
A82: 桑植县 | B82: 149.47 | C82: 87.89 | D82: 276 | E82: 33.12 | F82: 13.25 | G82: 116.35 | H82: 74.64
A83: 益阳市小计 | B83: 610.87 | C83: 359.21 | D83: 1128 | E83: =SUM(E84:E89) -> 135.36 | F83: =SUM(F84:F89) -> 54.15 | G83: =SUM(G84:G89) -> 475.51 | H83: =SUM(H84:H89) -> 305.06
A84: 益阳市本级及所辖区 | B84: 47.66 | C84: 28.02 | D84: 88 | E84: 10.56 | F84: 4.22 | G84: 37.10 | H84: 23.80 | I84: 资阳区
B85: 83.94 | C85: 49.36 | D85: 155 | E85: 18.60 | F85: 7.44 | G85: 65.34 | H85: 41.92 | I85: 赫山区
A86: 沅江市 | B86: 85.02 | C86: 50.00 | D86: 157 | E86: 18.84 | F86: 7.54 | G86: 66.18 | H86: 42.46
A87: 南县 | B87: 82.31 | C87: 48.41 | D87: 152 | E87: 18.24 | F87: 7.30 | G87: 64.07 | H87: 41.11 | I87: 含大通湖区
A88: 桃江县 | B88: 114.81 | C88: 67.51 | D88: 212 | E88: 25.44 | F88: 10.18 | G88: 89.37 | H88: 57.33
A89: 安化县 | B89: 197.13 | C89: 115.91 | D89: 364 | E89: 43.68 | F89: 17.47 | G89: 153.45 | H89: 98.44
A90: 永州市小计 | B90: 1595.43 | C90: 938.13 | D90: 2946 | E90: =SUM(E91:E101) -> 353.52 | F90: =SUM(F91:F101) -> 141.41 | G90: =SUM(G91:G101) -> 1241.91 | H90: =SUM(H91:H101) -> 796.72
A91: 永州市本级及所辖区 | B91: 161.93 | C91: 95.21 | D91: 299 | E91: 35.88 | F91: 14.35 | G91: 126.05 | H91: 80.86 | I91: 零陵区
B92: 93.14 | C92: 54.78 | D92: 172 | E92: 20.64 | F92: 8.26 | G92: 72.50 | H92: 46.52 | I92: 冷水滩区
A93: 东安县 | B93: 163.01 | C93: 95.85 | D93: 301 | E93: 36.12 | F93: 14.45 | G93: 126.89 | H93: 81.40
A94: 道县 | B94: 176.55 | C94: 103.81 | D94: 326 | E94: 39.12 | F94: 15.65 | G94: 137.43 | H94: 88.16
A95: 宁远县 | B95: 219.87 | C95: 129.29 | D95: 406 | E95: 48.72 | F95: 19.49 | G95: 171.15 | H95: 109.80
A96: 江永县 | B96: 56.86 | C96: 33.44 | D96: 105 | E96: 12.60 | F96: 5.04 | G96: 44.26 | H96: 28.40 | I96: 含回龙圩管理区
A97: 江华县 | B97: 159.76 | C97: 93.94 | D97: 295 | E97: 35.40 | F97: 14.16 | G97: 124.36 | H97: 79.78
A98: 蓝山县 | B98: 113.19 | C98: 66.55 | D98: 209 | E98: 25.08 | F98: 10.03 | G98: 88.11 | H98: 56.52
A99: 新田县 | B99: 106.14 | C99: 62.42 | D99: 196 | E99: 23.52 | F99: 9.41 | G99: 82.62 | H99: 53.01
A100: 双牌县 | B100: 61.74 | C100: 36.30 | D100: 114 | E100: 13.68 | F100: 5.47 | G100: 48.06 | H100: 30.83
A101: 祁阳县 | B101: 283.24 | C101: 166.54 | D101: 523 | E101: 62.76 | F101: 25.10 | G101: 220.48 | H101: 141.44 | I101: 含金洞管理区
A102: 郴州市小计 | B102: =E102+G102 -> 1117.76 | C102: =F102+H102 -> 657.28 | D102: 2064 | E102: =SUM(E103:E113) -> 247.68 | F102: =SUM(F103:F113) -> 99.09 | G102: =SUM(G103:G113) -> 870.08 | H102: =SUM(H103:H113) -> 558.19
A103: 郴州市本级及所辖区 | B103: 49.28 | C103: 28.98 | D103: 91 | E103: 10.92 | F103: 4.37 | G103: 38.36 | H103: 24.61 | I103: 北湖区
B104: 62.82 | C104: 36.94 | D104: 116 | E104: 13.92 | F104: 5.57 | G104: 48.90 | H104: 31.37 | I104: 苏仙区
A105: 资兴市 | B105: 99.11 | C105: 58.27 | D105: 183 | E105: 21.96 | F105: 8.78 | G105: 77.15 | H105: 49.49
A106: 桂阳县 | B106: 187.38 | C106: 110.18 | D106: 346 | E106: 41.52 | F106: 16.61 | G106: 145.86 | H106: 93.57
A107: 永兴县 | B107: 131.05 | C107: 77.07 | D107: 242 | E107: 29.04 | F107: 11.62 | G107: 102.01 | H107: 65.45
A108: 宜章县 | B108: 133.22 | C108: 78.34 | D108: 246 | E108: 29.52 | F108: 11.81 | G108: 103.70 | H108: 66.53
A109: 嘉禾县 | B109: 90.44 | C109: 53.18 | D109: 167 | E109: 20.04 | F109: 8.02 | G109: 70.40 | H109: 45.16
A110: 临武县 | B110: 108.31 | C110: 63.69 | D110: 200 | E110: 24.00 | F110: 9.60 | G110: 84.31 | H110: 54.09
A111: 汝城县 | B111: 117.51 | C111: 69.11 | D111: 217 | E111: 26.04 | F111: 10.42 | G111: 91.47 | H111: 58.69
A112: 桂东县 | B112: 55.24 | C112: 32.48 | D112: 102 | E112: 12.24 | F112: 4.90 | G112: 43.00 | H112: 27.58
A113: 安仁县 | B113: 83.40 | C113: 49.04 | D113: 154 | E113: 18.48 | F113: 7.39 | G113: 64.92 | H113: 41.65
A114: 娄底市小计 | B114: 972.64 | C114: 571.92 | D114: 1796 | E114: =SUM(E115:E119) -> 215.52 | F114: =SUM(F115:F119) -> 86.21 | G114: =SUM(G115:G119) -> 757.12 | H114: =SUM(H115:H119) -> 485.71
A115: 娄底市本级及所辖区 | B115: 85.02 | C115: 50.00 | D115: 157 | E115: 18.84 | F115: 7.54 | G115: 66.18 | H115: 42.46 | I115: 娄星区 （含经开区）
A116: 涟源市 | B116: 237.75 | C116: 139.79 | D116: 439 | E116: 52.68 | F116: 21.07 | G116: 185.07 | H116: 118.72
A117: 冷水江市 | B117: 49.28 | C117: 28.98 | D117: 91 | E117: 10.92 | F117: 4.37 | G117: 38.36 | H117: 24.61
A118: 双峰县 | B118: 258.87 | C118: 152.21 | D118: 478 | E118: 57.36 | F118: 22.94 | G118: 201.51 | H118: 129.27
A119: 新化县 | B119: 341.72 | C119: 200.94 | D119: 631 | E119: 75.72 | F119: 30.29 | G119: 266.00 | H119: 170.65
A120: 怀化市小计 | B120: 1329.52 | C120: 781.78 | D120: 2455 | E120: =SUM(E121:E133) -> 294.60 | F120: =SUM(F121:F133) -> 117.85 | G120: =SUM(G121:G133) -> 1034.92 | H120: =SUM(H121:H133) -> 663.93
A121: 怀化市本级及所辖区 | B121: 33.57 | C121: 19.75 | D121: 62 | E121: 7.44 | F121: 2.98 | G121: 26.13 | H121: 16.77 | I121: 鹤城区
A122: 沅陵县 | B122: 199.84 | C122: 117.50 | D122: 369 | E122: 44.28 | F122: 17.71 | G122: 155.56 | H122: 99.79
A123: 辰溪县 | B123: 147.30 | C123: 86.62 | D123: 272 | E123: 32.64 | F123: 13.06 | G123: 114.66 | H123: 73.56
A124: 溆浦县 | B124: 201.46 | C124: 118.46 | D124: 372 | E124: 44.64 | F124: 17.86 | G124: 156.82 | H124: 100.60
A125: 麻阳县 | B125: 108.85 | C125: 64.01 | D125: 201 | E125: 24.12 | F125: 9.65 | G125: 84.73 | H125: 54.36
A126: 新晃县 | B126: 74.19 | C126: 43.63 | D126: 137 | E126: 16.44 | F126: 6.58 | G126: 57.75 | H126: 37.05
A127: 芷江县 | B127: 107.23 | C127: 63.05 | D127: 198 | E127: 23.76 | F127: 9.50 | G127: 83.47 | H127: 53.55
A128: 中方县 | B128: 70.40 | C128: 41.40 | D128: 130 | E128: 15.60 | F128: 6.24 | G128: 54.80 | H128: 35.16
A129: 洪江市 | B129: 105.06 | C129: 61.78 | D129: 194 | E129: 23.28 | F129: 9.31 | G129: 81.78 | H129: 52.47
A130: 洪江区 | B130: 7.59 | C130: 4.45 | D130: 14 | E130: 1.68 | F130: 0.67 | G130: 5.91 | H130: 3.78
A131: 会同县 | B131: 124.56 | C131: 73.24 | D131: 230 | E131: 27.60 | F131: 11.04 | G131: 96.96 | H131: 62.20
A132: 靖州县 | B132: 67.16 | C132: 39.48 | D132: 124 | E132: 14.88 | F132: 5.95 | G132: 52.28 | H132: 33.53
A133: 通道县 | B133: 82.31 | C133: 48.41 | D133: 152 | E133: 18.24 | F133: 7.30 | G133: 64.07 | H133: 41.11
A134: 湘西土家族苗族自治州小计 | B134: =E134+G134 -> 751.71 | C134: =F134+H134 -> 497.09 | D134: 1561 | E134: =SUM(E135:E142) -> 299.71 | F134: =SUM(F135:F142) -> 74.93 | G134: =SUM(G135:G142) -> 452.00 | H134: =SUM(H135:H142) -> 422.16
A135: 湘西土家族苗族自治州 | B135: 52.97 | C135: 35.03 | D135: 110 | E135: 21.12 | F135: 5.28 | G135: 31.85 | H135: 29.75 | I135: 吉首市
B136: 63.08 | C136: 41.72 | D136: 131 | E136: 25.15 | F136: 6.29 | G136: 37.93 | H136: 35.43 | I136: 泸溪县
B137: 123.28 | C137: 81.52 | D137: 256 | E137: 49.15 | F137: 12.29 | G137: 74.13 | H137: 69.23 | I137: 凤凰县
B138: 104.50 | C138: 69.10 | D138: 217 | E138: 41.66 | F138: 10.42 | G138: 62.84 | H138: 58.68 | I138: 花垣县
B139: 76.57 | C139: 50.63 | D139: 159 | E139: 30.53 | F139: 7.63 | G139: 46.04 | H139: 43.00 | I139: 保靖县
B140: 49.60 | C140: 32.80 | D140: 103 | E140: 19.78 | F140: 4.94 | G140: 29.82 | H140: 27.86 | I140: 古丈县
B141: 127.61 | C141: 84.39 | D141: 265 | E141: 50.88 | F141: 12.72 | G141: 76.73 | H141: 71.67 | I141: 永顺县
B142: 154.10 | C142: 101.90 | D142: 320 | E142: 61.44 | F142: 15.36 | G142: 92.66 | H142: 86.54 | I142: 龙山县
